[Event "Titled Tuesday Blitz March 07 Late 2023"]
[White "Papasimakopoulos, Alexandros"]
[Black "Dardha, Daniel"]
[WhiteFideId "4244125"]
[BlackFideId "240990"]
[WhiteElo "2359"]
[BlackElo "2581"]
[Result "0-1"]
[Round "03"]
[TimeControl "180+2"]
[Date "2023.03.07"]
[WhiteClock "0:01:32"]
[BlackClock "0:01:30"]

1. d4 {[%clk 0:03:00]}  Nf6 {[%clk 0:02:56]} 2. c4 {[%clk 0:02:59]}  e6 {[%clk 0:02:56]} 3. Nc3 {[%clk 0:02:59]}  Bb4 {[%clk 0:02:55]} 4. Qc2 {[%clk 0:03:00]}  b6 {[%clk 0:02:53]} 5. a3 {[%clk 0:03:00]}  Bxc3+ {[%clk 0:02:50]} 6. Qxc3 {[%clk 0:03:01]}  Bb7 {[%clk 0:02:51]} 7. Bg5 {[%clk 0:03:01]}  h6 {[%clk 0:02:50]} 8. Bh4 {[%clk 0:03:01]}  d6 {[%clk 0:02:49]} 9. f3 {[%clk 0:03:01]}  c5 {[%clk 0:02:44]} 10. dxc5 {[%clk 0:03:01]}  bxc5 {[%clk 0:02:45]} 11. Rd1 {[%clk 0:02:59]}  Nc6 {[%clk 0:02:41]} 12. b4 {[%clk 0:02:52]}  cxb4 {[%clk 0:02:37]} 13. axb4 {[%clk 0:02:53]}  a5 {[%clk 0:02:29]} 14. b5 {[%clk 0:02:48]}  Nb4 {[%clk 0:02:29]} 15. Bg3 {[%clk 0:02:32]}  O-O {[%clk 0:02:12]} 16. Bxd6 {[%clk 0:02:29]}  Nfd5 {[%clk 0:02:09]} 17. Qe5 {[%clk 0:02:15]}  Ne3 {[%clk 0:01:48]} 18. Bxf8 {[%clk 0:01:46]}  Nbc2+ {[%clk 0:01:29]} 19. Kf2 {[%clk 0:01:41]}  Qh4+ {[%clk 0:01:29]} 20. g3 {[%clk 0:01:33]}  Nxd1+ {[%clk 0:01:29]} 21. Kg2 {[%clk 0:01:32]}  Ne1# {[%clk 0:01:30]} 0-1


[Site "https://www.chess.com"]

[Event "Titled Tuesday Blitz March 07 Late 2023"]
[White "Ozer, Omer Faruk"]
[Black "Remizov, Yaroslav"]
[WhiteFideId "6354564"]
[BlackFideId "34134015"]
[WhiteElo "2260"]
[BlackElo "2408"]
[Result "1-0"]
[Round "03"]
[TimeControl "180+2"]
[Date "2023.03.07"]
[WhiteClock "0:00:12"]
[BlackClock "0:00:12"]

1. d4 {[%clk 0:03:00]}  Nf6 {[%clk 0:02:10]} 2. Nf3 {[%clk 0:03:00]}  e6 {[%clk 0:02:09]} 3. g3 {[%clk 0:02:59]}  b6 {[%clk 0:02:06]} 4. Bg2 {[%clk 0:02:59]}  Bb7 {[%clk 0:02:06]} 5. O-O {[%clk 0:02:59]}  Be7 {[%clk 0:02:07]} 6. b3 {[%clk 0:02:58]}  O-O {[%clk 0:02:07]} 7. Bb2 {[%clk 0:02:59]}  d6 {[%clk 0:02:02]} 8. c4 {[%clk 0:02:57]}  Nbd7 {[%clk 0:02:02]} 9. Nc3 {[%clk 0:02:57]}  Ne4 {[%clk 0:02:01]} 10. Qc2 {[%clk 0:02:53]}  f5 {[%clk 0:01:54]} 11. Ne1 {[%clk 0:02:40]}  Ndf6 {[%clk 0:01:46]} 12. Nd3 {[%clk 0:02:30]}  Rb8 {[%clk 0:01:37]} 13. Nf4 {[%clk 0:02:24]}  Qd7 {[%clk 0:01:21]} 14. d5 {[%clk 0:02:20]}  Nxc3 {[%clk 0:01:00]} 15. Qxc3 {[%clk 0:02:18]}  e5 {[%clk 0:01:00]} 16. Ne6 {[%clk 0:02:16]}  Rf7 {[%clk 0:01:00]} 17. f4 {[%clk 0:02:14]}  e4 {[%clk 0:00:51]} 18. Bh3 {[%clk 0:02:12]}  g6 {[%clk 0:00:48]} 19. Ng5 {[%clk 0:02:05]}  Rff8 {[%clk 0:00:45]} 20. Nxe4 {[%clk 0:02:02]}  Qe8 {[%clk 0:00:29]} 21. Ng5 {[%clk 0:02:00]}  c6 {[%clk 0:00:27]} 22. e4 {[%clk 0:01:57]}  h6 {[%clk 0:00:21]} 23. Ne6 {[%clk 0:01:50]}  Rf7 {[%clk 0:00:22]} 24. exf5 {[%clk 0:01:49]}  gxf5 {[%clk 0:00:21]} 25. Bxf5 {[%clk 0:01:47]}  cxd5 {[%clk 0:00:22]} 26. Rae1 {[%clk 0:01:46]}  dxc4 {[%clk 0:00:16]} 27. Bg6 {[%clk 0:01:31]}  Qc6 {[%clk 0:00:14]} 28. Bxf7+ {[%clk 0:00:47]}  Kxf7 {[%clk 0:00:15]} 29. Re2 {[%clk 0:00:27]}  Qh1+ {[%clk 0:00:13]} 30. Kf2 {[%clk 0:00:28]}  Ne4+ {[%clk 0:00:13]} 31. Rxe4 {[%clk 0:00:24]}  Qxe4 {[%clk 0:00:13]} 32. Qg7+ {[%clk 0:00:22]}  Kxe6 {[%clk 0:00:13]} 33. Re1 {[%clk 0:00:22]}  Qxe1+ {[%clk 0:00:13]} 34. Kxe1 {[%clk 0:00:22]}  cxb3 {[%clk 0:00:12]} 35. f5+ {[%clk 0:00:21]}  Kd7 {[%clk 0:00:09]} 36. f6 {[%clk 0:00:21]}  Re8 {[%clk 0:00:09]} 37. Kd2 {[%clk 0:00:20]}  bxa2 {[%clk 0:00:10]} 38. Qg4+ {[%clk 0:00:15]}  Kc7 {[%clk 0:00:08]} 39. Qc4+ {[%clk 0:00:15]}  Bc6 {[%clk 0:00:08]} 40. fxe7 {[%clk 0:00:15]}  Rxe7 {[%clk 0:00:09]} 41. Qxa2 {[%clk 0:00:15]}  Bb5 {[%clk 0:00:09]} 42. Qxa7+ {[%clk 0:00:15]}  Kd8 {[%clk 0:00:08]} 43. Qxb6+ {[%clk 0:00:15]}  Kd7 {[%clk 0:00:09]} 44. Qxb5+ {[%clk 0:00:15]}  Ke6 {[%clk 0:00:09]} 45. Qe2+ {[%clk 0:00:14]}  Kd7 {[%clk 0:00:10]} 46. Qg4+ {[%clk 0:00:14]}  Kc6 {[%clk 0:00:11]} 47. Qc4+ {[%clk 0:00:14]}  Kd7 {[%clk 0:00:11]} 48. Ba3 {[%clk 0:00:14]}  Re5 {[%clk 0:00:11]} 49. Qd4 {[%clk 0:00:13]}  Re6 {[%clk 0:00:11]} 50. g4 {[%clk 0:00:11]}  Ke7 {[%clk 0:00:11]} 51. h4 {[%clk 0:00:11]}  Kd8 {[%clk 0:00:11]} 52. g5 {[%clk 0:00:11]}  hxg5 {[%clk 0:00:12]} 53. hxg5 {[%clk 0:00:12]}  Ke7 {[%clk 0:00:12]} 54. Qg7+ {[%clk 0:00:12]}  Ke8 {[%clk 0:00:13]} 55. g6 {[%clk 0:00:12]}  Rxg6 {[%clk 0:00:12]} 56. Qxg6+ {[%clk 0:00:12]}  Kf8 {[%clk 0:00:12]} 57. Bxd6# {[%clk 0:00:12]} 1-0


[Site "https://www.chess.com"]

[Event "Titled Tuesday Blitz March 07 Late 2023"]
[White "Corrales Jimenez, Fidel"]
[Black "Saveliev, Alexei"]
[WhiteFideId "3506690"]
[BlackFideId "24128546"]
[WhiteElo "2541"]
[BlackElo "2271"]
[Result "0-1"]
[Round "03"]
[TimeControl "180+2"]
[Date "2023.03.07"]
[WhiteClock "0:00:02"]
[BlackClock "0:00:09"]

1. d4 {[%clk 0:03:00]}  g6 {[%clk 0:03:00]} 2. c4 {[%clk 0:02:59]}  Bg7 {[%clk 0:03:01]} 3. Nc3 {[%clk 0:02:59]}  d6 {[%clk 0:03:01]} 4. e4 {[%clk 0:03:00]}  Nc6 {[%clk 0:03:02]} 5. Nge2 {[%clk 0:02:58]}  e5 {[%clk 0:03:02]} 6. d5 {[%clk 0:02:58]}  Nce7 {[%clk 0:03:02]} 7. f3 {[%clk 0:02:46]}  f5 {[%clk 0:03:03]} 8. Be3 {[%clk 0:02:43]}  Nf6 {[%clk 0:03:03]} 9. h3 {[%clk 0:02:43]}  O-O {[%clk 0:03:03]} 10. Qd2 {[%clk 0:02:43]}  c6 {[%clk 0:03:03]} 11. g4 {[%clk 0:02:42]}  cxd5 {[%clk 0:03:03]} 12. cxd5 {[%clk 0:02:43]}  b5 {[%clk 0:03:03]} 13. gxf5 {[%clk 0:02:41]}  gxf5 {[%clk 0:03:02]} 14. Rg1 {[%clk 0:02:41]}  b4 {[%clk 0:02:58]} 15. Nb5 {[%clk 0:02:40]}  fxe4 {[%clk 0:02:55]} 16. fxe4 {[%clk 0:02:35]}  a6 {[%clk 0:02:41]} 17. Rxg7+ {[%clk 0:02:26]}  Kxg7 {[%clk 0:02:41]} 18. Bh6+ {[%clk 0:02:27]}  Kf7 {[%clk 0:02:37]} 19. Bxf8 {[%clk 0:01:24]}  Kxf8 {[%clk 0:02:38]} 20. Qh6+ {[%clk 0:01:24]}  Kf7 {[%clk 0:02:38]} 21. Nxd6+ {[%clk 0:01:24]}  Qxd6 {[%clk 0:02:39]} 22. Ng3 {[%clk 0:01:24]}  Ng6 {[%clk 0:02:17]} 23. Be2 {[%clk 0:01:23]}  Qc5 {[%clk 0:02:04]} 24. Rc1 {[%clk 0:01:06]}  Qg1+ {[%clk 0:02:03]} 25. Nf1 {[%clk 0:01:06]}  Bd7 {[%clk 0:01:56]} 26. Rc7 {[%clk 0:01:04]}  Rc8 {[%clk 0:01:50]} 27. Rxd7+ {[%clk 0:00:58]}  Nxd7 {[%clk 0:01:50]} 28. Qxh7+ {[%clk 0:00:59]}  Ke8 {[%clk 0:01:47]} 29. Bg4 {[%clk 0:00:51]}  Ngf8 {[%clk 0:01:29]} 30. d6 {[%clk 0:00:49]}  Rc1+ {[%clk 0:01:16]} 31. Kd2 {[%clk 0:00:49]}  Qf2+ {[%clk 0:01:17]} 32. Kxc1 {[%clk 0:00:48]}  Qxf1+ {[%clk 0:01:17]} 33. Kc2 {[%clk 0:00:38]}  Qc4+ {[%clk 0:01:12]} 34. Kb1 {[%clk 0:00:33]}  Qd3+ {[%clk 0:01:10]} 35. Kc1 {[%clk 0:00:34]}  Qxd6 {[%clk 0:01:09]} 36. Qh4 {[%clk 0:00:28]}  Nf6 {[%clk 0:01:03]} 37. Bf5 {[%clk 0:00:26]}  a5 {[%clk 0:00:55]} 38. Qg3 {[%clk 0:00:14]}  a4 {[%clk 0:00:52]} 39. b3 {[%clk 0:00:08]}  Qc5+ {[%clk 0:00:47]} 40. Kd1 {[%clk 0:00:08]}  Qd4+ {[%clk 0:00:44]} 41. Ke2 {[%clk 0:00:08]}  Nxe4 {[%clk 0:00:37]} 42. Bg6+ {[%clk 0:00:08]}  Nxg6 {[%clk 0:00:34]} 43. Qxg6+ {[%clk 0:00:09]}  Ke7 {[%clk 0:00:34]} 44. Qg7+ {[%clk 0:00:09]}  Ke6 {[%clk 0:00:34]} 45. Qg8+ {[%clk 0:00:10]}  Kf5 {[%clk 0:00:28]} 46. Qh7+ {[%clk 0:00:09]}  Ke6 {[%clk 0:00:26]} 47. Qg8+ {[%clk 0:00:09]}  Kd7 {[%clk 0:00:25]} 48. Qf7+ {[%clk 0:00:08]}  Kc6 {[%clk 0:00:26]} 49. Qe8+ {[%clk 0:00:08]}  Qd7 {[%clk 0:00:13]} 50. Qa8+ {[%clk 0:00:08]}  Qb7 {[%clk 0:00:14]} 51. Qe8+ {[%clk 0:00:06]}  Kd5 {[%clk 0:00:13]} 52. Qg8+ {[%clk 0:00:05]}  Kd6 {[%clk 0:00:10]} 53. Qf8+ {[%clk 0:00:04]}  Qe7 {[%clk 0:00:11]} 54. Qb8+ {[%clk 0:00:04]}  Ke6 {[%clk 0:00:11]} 55. Qg8+ {[%clk 0:00:03]}  Qf7 {[%clk 0:00:09]} 56. Qc8+ {[%clk 0:00:02]}  Kf6 {[%clk 0:00:09]} 0-1


[Site "https://www.chess.com"]

[Event "Titled Tuesday Blitz March 07 Late 2023"]
[White "Melkumyan, Hrant"]
[Black "Pinheiro, Iung Alicio de O."]
[WhiteFideId "13302485"]
[BlackFideId "2104350"]
[WhiteElo "2604"]
[BlackElo "2283"]
[Result "1/2-1/2"]
[Round "03"]
[TimeControl "180+2"]
[Date "2023.03.07"]
[WhiteClock "0:00:06"]
[BlackClock "0:00:06"]

1. d4 {[%clk 0:02:53]}  d5 {[%clk 0:02:59]} 2. c4 {[%clk 0:02:53]}  e6 {[%clk 0:02:59]} 3. Nc3 {[%clk 0:02:53]}  h6 {[%clk 0:02:59]} 4. Bf4 {[%clk 0:02:50]}  Nf6 {[%clk 0:02:57]} 5. e3 {[%clk 0:02:50]}  Bd6 {[%clk 0:02:46]} 6. Nh3 {[%clk 0:02:45]}  a6 {[%clk 0:02:38]} 7. Rc1 {[%clk 0:02:44]}  O-O {[%clk 0:02:22]} 8. Be2 {[%clk 0:02:44]}  dxc4 {[%clk 0:02:18]} 9. Bxc4 {[%clk 0:02:43]}  b5 {[%clk 0:02:18]} 10. Be2 {[%clk 0:02:43]}  Bb7 {[%clk 0:02:18]} 11. O-O {[%clk 0:02:43]}  Nbd7 {[%clk 0:02:14]} 12. Bxd6 {[%clk 0:02:31]}  cxd6 {[%clk 0:02:12]} 13. Nf4 {[%clk 0:02:32]}  Rc8 {[%clk 0:02:03]} 14. Bf3 {[%clk 0:02:27]}  Qb6 {[%clk 0:02:00]} 15. h3 {[%clk 0:02:24]}  Rfd8 {[%clk 0:01:58]} 16. Nd3 {[%clk 0:02:16]}  e5 {[%clk 0:01:41]} 17. Bxb7 {[%clk 0:02:13]}  Qxb7 {[%clk 0:01:41]} 18. Qb3 {[%clk 0:01:54]}  exd4 {[%clk 0:01:23]} 19. exd4 {[%clk 0:01:55]}  Nb6 {[%clk 0:01:23]} 20. a4 {[%clk 0:01:46]}  bxa4 {[%clk 0:01:16]} 21. Nxa4 {[%clk 0:01:42]}  Rb8 {[%clk 0:01:17]} 22. Nxb6 {[%clk 0:01:25]}  Qxb6 {[%clk 0:01:16]} 23. Qxb6 {[%clk 0:01:26]}  Rxb6 {[%clk 0:01:16]} 24. Rc3 {[%clk 0:01:27]}  Ne4 {[%clk 0:01:05]} 25. Ra3 {[%clk 0:01:27]}  Rdb8 {[%clk 0:00:58]} 26. Re1 {[%clk 0:01:23]}  Nd2 {[%clk 0:00:50]} 27. b4 {[%clk 0:01:11]}  Nc4 {[%clk 0:00:45]} 28. Ra2 {[%clk 0:01:12]}  Kf8 {[%clk 0:00:34]} 29. g4 {[%clk 0:01:03]}  Re8 {[%clk 0:00:23]} 30. Rea1 {[%clk 0:01:03]}  Re4 {[%clk 0:00:18]} 31. Rc1 {[%clk 0:00:44]}  Rxd4 {[%clk 0:00:17]} 32. Rc3 {[%clk 0:00:45]}  Ne5 {[%clk 0:00:17]} 33. Rc8+ {[%clk 0:00:26]}  Ke7 {[%clk 0:00:16]} 34. Nxe5 {[%clk 0:00:18]}  dxe5 {[%clk 0:00:17]} 35. Ra5 {[%clk 0:00:18]}  f6 {[%clk 0:00:15]} 36. Rc7+ {[%clk 0:00:17]}  Rd7 {[%clk 0:00:15]} 37. Rc4 {[%clk 0:00:17]}  Rdb7 {[%clk 0:00:15]} 38. Rc8 {[%clk 0:00:16]}  Rxb4 {[%clk 0:00:13]} 39. Rxa6 {[%clk 0:00:16]}  Kf7 {[%clk 0:00:14]} 40. Raa8 {[%clk 0:00:16]}  Kg6 {[%clk 0:00:11]} 41. Kg2 {[%clk 0:00:16]}  Rf4 {[%clk 0:00:11]} 42. Ra2 {[%clk 0:00:16]}  Rb3 {[%clk 0:00:11]} 43. Rc7 {[%clk 0:00:16]}  Rbf3 {[%clk 0:00:11]} 44. Re2 {[%clk 0:00:15]}  Kh7 {[%clk 0:00:10]} 45. Re7 {[%clk 0:00:15]}  Kg6 {[%clk 0:00:10]} 46. Rd7 {[%clk 0:00:15]}  Rc3 {[%clk 0:00:10]} 47. Ra2 {[%clk 0:00:14]}  Rcf3 {[%clk 0:00:10]} 48. Rb2 {[%clk 0:00:14]}  Kh7 {[%clk 0:00:09]} 49. Rc2 {[%clk 0:00:13]}  Kg6 {[%clk 0:00:09]} 50. Rdc7 {[%clk 0:00:13]}  e4 {[%clk 0:00:09]} 51. Re7 {[%clk 0:00:13]}  Kh7 {[%clk 0:00:05]} 52. Re2 {[%clk 0:00:13]}  Kg6 {[%clk 0:00:04]} 53. Rd2 {[%clk 0:00:14]}  Kh7 {[%clk 0:00:04]} 54. Re6 {[%clk 0:00:10]}  Kg6 {[%clk 0:00:04]} 55. Red6 {[%clk 0:00:11]}  Kh7 {[%clk 0:00:04]} 56. Re6 {[%clk 0:00:10]}  Kg6 {[%clk 0:00:04]} 57. Re8 {[%clk 0:00:10]}  Kh7 {[%clk 0:00:05]} 58. Re2 {[%clk 0:00:09]}  Kg6 {[%clk 0:00:05]} 59. Ra8 {[%clk 0:00:09]}  Kh7 {[%clk 0:00:05]} 60. Ra5 {[%clk 0:00:10]}  Kg6 {[%clk 0:00:05]} 61. Rd5 {[%clk 0:00:10]}  Kh7 {[%clk 0:00:06]} 62. Rd4 {[%clk 0:00:10]}  Kg6 {[%clk 0:00:06]} 63. Rc4 {[%clk 0:00:09]}  Kh7 {[%clk 0:00:06]} 64. Rcxe4 {[%clk 0:00:08]}  Rxe4 {[%clk 0:00:06]} 65. Rxe4 {[%clk 0:00:09]}  Ra3 {[%clk 0:00:07]} 66. h4 {[%clk 0:00:09]}  Ra5 {[%clk 0:00:07]} 67. h5 {[%clk 0:00:10]}  Kg8 {[%clk 0:00:07]} 68. Kg3 {[%clk 0:00:10]}  Kf7 {[%clk 0:00:08]} 69. Rf4 {[%clk 0:00:10]}  Ra7 {[%clk 0:00:09]} 70. Rb4 {[%clk 0:00:10]}  Re7 {[%clk 0:00:09]} 71. Kf4 {[%clk 0:00:10]}  Ra7 {[%clk 0:00:10]} 72. Rb5 {[%clk 0:00:10]}  Re7 {[%clk 0:00:10]} 73. Kf5 {[%clk 0:00:11]}  Ra7 {[%clk 0:00:10]} 74. f4 {[%clk 0:00:11]}  Re7 {[%clk 0:00:11]} 75. Rc5 {[%clk 0:00:11]}  Ra7 {[%clk 0:00:11]} 76. Ke4 {[%clk 0:00:12]}  Re7+ {[%clk 0:00:10]} 77. Kd5 {[%clk 0:00:12]}  Ra7 {[%clk 0:00:11]} 78. Kd6 {[%clk 0:00:12]}  Ra1 {[%clk 0:00:10]} 79. Rc7+ {[%clk 0:00:12]}  Kg8 {[%clk 0:00:10]} 80. Ke6 {[%clk 0:00:12]}  Ra5 {[%clk 0:00:08]} 81. Rd7 {[%clk 0:00:12]}  Kh7 {[%clk 0:00:07]} 82. Rd5 {[%clk 0:00:05]}  Ra6+ {[%clk 0:00:05]} 83. Ke7 {[%clk 0:00:04]}  Ra7+ {[%clk 0:00:05]} 84. Rd7 {[%clk 0:00:04]}  Ra8 {[%clk 0:00:05]} 85. Kf7 {[%clk 0:00:05]}  Rb8 {[%clk 0:00:05]} 86. Re7 {[%clk 0:00:04]}  Ra8 {[%clk 0:00:05]} 87. Rc7 {[%clk 0:00:04]}  Rb8 {[%clk 0:00:05]} 88. Ra7 {[%clk 0:00:05]}  Rc8 {[%clk 0:00:05]} 89. Rd7 {[%clk 0:00:05]}  Rb8 {[%clk 0:00:05]} 90. Ke6 {[%clk 0:00:06]}  Ra8 {[%clk 0:00:05]} 91. Rd5 {[%clk 0:00:06]}  Ra6+ {[%clk 0:00:06]} 92. Kf5 {[%clk 0:00:07]}  Ra7 {[%clk 0:00:06]} 93. Rc5 {[%clk 0:00:07]}  Rd7 {[%clk 0:00:05]} 94. Ke6 {[%clk 0:00:06]}  Ra7 {[%clk 0:00:06]} 95. Rd5 {[%clk 0:00:06]}  Ra6+ {[%clk 0:00:06]} 1/2-1/2


[Site "https://www.chess.com"]

[Event "Titled Tuesday Blitz March 07 Late 2023"]
[White "Berezin, Viktor"]
[Black "Kosakowski, Jakub"]
[WhiteFideId "14107872"]
[BlackFideId "1185080"]
[WhiteElo "2310"]
[BlackElo "2488"]
[Result "0-1"]
[Round "03"]
[TimeControl "180+2"]
[Date "2023.03.07"]
[WhiteClock "0:00:16"]
[BlackClock "0:01:33"]

1. d4 {[%clk 0:03:00]}  Nf6 {[%clk 0:02:56]} 2. c4 {[%clk 0:02:59]}  g6 {[%clk 0:02:55]} 3. Nf3 {[%clk 0:02:58]}  Bg7 {[%clk 0:02:55]} 4. g3 {[%clk 0:02:59]}  d5 {[%clk 0:02:54]} 5. Bg2 {[%clk 0:02:56]}  dxc4 {[%clk 0:02:53]} 6. O-O {[%clk 0:02:55]}  O-O {[%clk 0:02:52]} 7. Na3 {[%clk 0:02:55]}  c3 {[%clk 0:02:52]} 8. bxc3 {[%clk 0:02:56]}  c5 {[%clk 0:02:52]} 9. e3 {[%clk 0:02:56]}  Nc6 {[%clk 0:02:51]} 10. Bb2 {[%clk 0:02:56]}  Bf5 {[%clk 0:02:47]} 11. Nc4 {[%clk 0:02:53]}  Rc8 {[%clk 0:02:44]} 12. Rc1 {[%clk 0:02:49]}  Be4 {[%clk 0:02:42]} 13. Re1 {[%clk 0:02:44]}  cxd4 {[%clk 0:02:32]} 14. cxd4 {[%clk 0:02:42]}  Nb4 {[%clk 0:02:30]} 15. Nfe5 {[%clk 0:02:20]}  Bxg2 {[%clk 0:02:26]} 16. Kxg2 {[%clk 0:02:19]}  b5 {[%clk 0:02:25]} 17. Nd2 {[%clk 0:02:02]}  Qd5+ {[%clk 0:02:21]} 18. e4 {[%clk 0:01:46]}  Qxa2 {[%clk 0:02:21]} 19. Bc3 {[%clk 0:01:46]}  a5 {[%clk 0:01:57]} 20. d5 {[%clk 0:01:23]}  Rxc3 {[%clk 0:01:42]} 21. Rxc3 {[%clk 0:01:23]}  Ng4 {[%clk 0:01:33]} 22. Qxg4 {[%clk 0:00:22]}  Qxd2 {[%clk 0:01:33]} 23. Rec1 {[%clk 0:00:20]}  Bxe5 {[%clk 0:01:33]} 24. Rc8 {[%clk 0:00:20]}  Nd3 {[%clk 0:01:32]} 25. Rxf8+ {[%clk 0:00:16]}  Kxf8 {[%clk 0:01:33]} 26. Rc8+ {[%clk 0:00:17]}  Kg7 {[%clk 0:01:33]} 27. Qf3 {[%clk 0:00:16]}  Ne1+ {[%clk 0:01:33]} 0-1


[Site "https://www.chess.com"]

[Event "Titled Tuesday Blitz March 07 Late 2023"]
[White "Mostbauer, Maximilian"]
[Black "Hamidi, Amir Mohammad"]
[WhiteFideId "1626680"]
[BlackFideId "12563285"]
[WhiteElo "2179"]
[BlackElo "2228"]
[Result "1/2-1/2"]
[Round "03"]
[TimeControl "180+2"]
[Date "2023.03.07"]
[WhiteClock "0:00:06"]
[BlackClock "0:00:35"]

1. d4 {[%clk 0:03:00]}  Nf6 {[%clk 0:02:59]} 2. Nf3 {[%clk 0:03:01]}  g6 {[%clk 0:02:59]} 3. g3 {[%clk 0:03:01]}  Bg7 {[%clk 0:02:58]} 4. Bg2 {[%clk 0:03:02]}  O-O {[%clk 0:02:59]} 5. O-O {[%clk 0:03:03]}  d6 {[%clk 0:02:59]} 6. b3 {[%clk 0:03:04]}  e5 {[%clk 0:02:59]} 7. dxe5 {[%clk 0:03:05]}  dxe5 {[%clk 0:02:59]} 8. Bb2 {[%clk 0:03:04]}  e4 {[%clk 0:02:59]} 9. Ng5 {[%clk 0:03:03]}  e3 {[%clk 0:02:56]} 10. fxe3 {[%clk 0:03:00]}  Qe7 {[%clk 0:02:54]} 11. Qc1 {[%clk 0:02:40]}  h6 {[%clk 0:02:41]} 12. Nf3 {[%clk 0:02:12]}  Re8 {[%clk 0:02:32]} 13. Nc3 {[%clk 0:02:00]}  c6 {[%clk 0:02:29]} 14. e4 {[%clk 0:01:39]}  Nbd7 {[%clk 0:01:51]} 15. h3 {[%clk 0:01:20]}  Nxe4 {[%clk 0:01:16]} 16. Nxe4 {[%clk 0:01:18]}  Qxe4 {[%clk 0:01:17]} 17. Ne5 {[%clk 0:00:59]}  Qxe2 {[%clk 0:00:55]} 18. Nxf7 {[%clk 0:00:42]}  Qe3+ {[%clk 0:00:55]} 19. Qxe3 {[%clk 0:00:33]}  Rxe3 {[%clk 0:00:56]} 20. Bxg7 {[%clk 0:00:33]}  Kxg7 {[%clk 0:00:56]} 21. Nd6 {[%clk 0:00:34]}  Nf6 {[%clk 0:00:53]} 22. Rae1 {[%clk 0:00:31]}  Rxe1 {[%clk 0:00:52]} 23. Rxe1 {[%clk 0:00:32]}  Kf8 {[%clk 0:00:53]} 24. g4 {[%clk 0:00:24]}  Rb8 {[%clk 0:00:52]} 25. c4 {[%clk 0:00:18]}  Bd7 {[%clk 0:00:52]} 26. c5 {[%clk 0:00:18]}  b6 {[%clk 0:00:53]} 27. Rc1 {[%clk 0:00:16]}  bxc5 {[%clk 0:00:52]} 28. Rxc5 {[%clk 0:00:16]}  Ke7 {[%clk 0:00:53]} 29. Nc4 {[%clk 0:00:16]}  Rb5 {[%clk 0:00:50]} 30. Rxb5 {[%clk 0:00:15]}  cxb5 {[%clk 0:00:51]} 31. Ne5 {[%clk 0:00:16]}  Be8 {[%clk 0:00:52]} 32. Kf2 {[%clk 0:00:16]}  Kd6 {[%clk 0:00:51]} 33. Nd3 {[%clk 0:00:16]}  a5 {[%clk 0:00:48]} 34. Ke3 {[%clk 0:00:17]}  b4 {[%clk 0:00:46]} 35. Kd4 {[%clk 0:00:17]}  Bb5 {[%clk 0:00:47]} 36. Ne5 {[%clk 0:00:15]}  h5 {[%clk 0:00:43]} 37. g5 {[%clk 0:00:13]}  Nh7 {[%clk 0:00:43]} 38. h4 {[%clk 0:00:13]}  Nf8 {[%clk 0:00:44]} 39. Be4 {[%clk 0:00:13]}  Ne6+ {[%clk 0:00:44]} 40. Ke3 {[%clk 0:00:11]}  Kxe5 {[%clk 0:00:45]} 41. Bxg6 {[%clk 0:00:12]}  Nf4 {[%clk 0:00:46]} 42. Bf7 {[%clk 0:00:11]}  Ng2+ {[%clk 0:00:43]} 43. Kf2 {[%clk 0:00:10]}  Nxh4 {[%clk 0:00:44]} 44. Bxh5 {[%clk 0:00:11]}  Bd3 {[%clk 0:00:43]} 45. Ke3 {[%clk 0:00:11]}  Bb1 {[%clk 0:00:42]} 46. Bd1 {[%clk 0:00:11]}  Bg6 {[%clk 0:00:43]} 47. Be2 {[%clk 0:00:10]}  Nf5+ {[%clk 0:00:43]} 48. Kd3 {[%clk 0:00:10]}  Nd4+ {[%clk 0:00:43]} 49. Kc4 {[%clk 0:00:10]}  Be8 {[%clk 0:00:37]} 50. Kc5 {[%clk 0:00:06]}  Nxe2 {[%clk 0:00:32]} 51. Kb6 {[%clk 0:00:07]}  Nc3 {[%clk 0:00:33]} 52. Kxa5 {[%clk 0:00:06]}  Nxa2 {[%clk 0:00:33]} 53. Kb6 {[%clk 0:00:04]}  Kf5 {[%clk 0:00:34]} 54. Kc5 {[%clk 0:00:04]}  Kxg5 {[%clk 0:00:32]} 55. Kd4 {[%clk 0:00:05]}  Bg6 {[%clk 0:00:33]} 56. Ke3 {[%clk 0:00:05]}  Nc1 {[%clk 0:00:32]} 57. Kd4 {[%clk 0:00:04]}  Na2 {[%clk 0:00:31]} 58. Ke3 {[%clk 0:00:04]}  Bf7 {[%clk 0:00:31]} 59. Kd2 {[%clk 0:00:05]}  Bxb3 {[%clk 0:00:32]} 60. Kd3 {[%clk 0:00:05]}  Bf7 {[%clk 0:00:33]} 61. Kc2 {[%clk 0:00:05]}  Kf4 {[%clk 0:00:33]} 62. Kb2 {[%clk 0:00:06]}  Nc3 {[%clk 0:00:33]} 63. Kc2 {[%clk 0:00:06]}  Ke3 {[%clk 0:00:34]} 64. Kb2 {[%clk 0:00:06]}  Kd2 {[%clk 0:00:33]} 65. Ka1 {[%clk 0:00:06]}  Na4 {[%clk 0:00:34]} 66. Kb1 {[%clk 0:00:06]}  b3 {[%clk 0:00:34]} 67. Ka1 {[%clk 0:00:06]}  Bg6 {[%clk 0:00:35]} 1/2-1/2


[Site "https://www.chess.com"]